bitfinex/quotes_SOLUSD_20220113
["timestamp","ask_amount","ask_price","bid_price","bid_amount"]
[1642090626235,6.57151992,153.82,153.73,9.7541]
[1642090626437,6.32151992,153.82,153.73,9.7541]
[1642090626637,6.32151992,153.82,153.73,10.0141]
[1642090626838,2.36026292,153.81,153.73,10.0141]
[1642090627037,2.62026292,153.81,153.73,16.0141]
[1642090627838,2.36026292,153.81,153.73,15.7541]
[1642090628040,2.36026292,153.81,153.73,16.0041]
[1642090628638,2.62026292,153.81,153.73,16.0041]
[1642090628839,6.32151992,153.81,153.73,16.0041]
[1642090629141,16.07561992,153.81,153.73,16.0041]
[1642090629640,12.37436292,153.81,153.73,16.0041]
[1642090629838,12.11436292,153.81,153.74,1.25122012]
[1642090630039,2.36026292,153.81,153.75,9.7536]
[1642090630539,2.36026292,153.81,153.75,10.0036]
[1642090630739,2.36026292,153.81,153.75,16.0036]
[1642090630938,2.36026292,153.81,153.75,16.2636]
[1642090631338,3.7166011,153.81,153.75,16.2636]
[1642090632240,6.07686402,153.81,153.75,16.2636]
[1642090633044,6.07686402,153.82,153.75,16.2636]
[1642090633442,6.07686402,153.82,153.75,81.1436]
[1642090634143,6.07686402,153.82,153.76,7.82]
[1642090634345,2.36026292,153.83,153.77,20.69260985]
[1642090634546,2.36026292,153.83,153.77,27.20260985]
[1642090635145,2.36026292,153.83,153.77,26.94260985]
[1642090635346,2.36026292,153.85,153.77,26.94260985]
[1642090637051,2.36026292,153.85,153.77,91.82260985]
[1642090637255,6.07686402,153.86,153.77,91.82260985]
[1642090637453,6.07686402,153.86,153.77,28.58225239]
[1642090638062,6.07686402,153.86,153.77,28.84225239]
[1642090638553,2.36026292,153.86,153.77,28.58225239]
[1642090639956,2.36026292,153.86,153.77,28.84225239]
[1642090640959,2.36026292,153.86,153.77,36.66225239]
[1642090643266,2.36026292,153.86,153.77,36.40225239]
[1642090643459,2.62026292,153.86,153.77,36.40225239]
[1642090643661,2.62026292,153.86,153.77,23.8197]
[1642090643861,2.62026292,153.86,153.77,9.7497]
[1642090644286,8.62026292,153.86,153.77,9.7497]
[1642090644486,8.87026292,153.86,153.77,9.7497]
[1642090644686,12.3519,153.85,153.77,9.7497]
[1642090644886,2.36026292,153.84,153.77,9.7497]
[1642090645087,8.87026292,153.84,153.77,9.7497]
[1642090645288,8.62026292,153.84,153.77,9.7497]
[1642090645489,2.62026292,153.84,153.77,9.7497]
[1642090645693,2.62026292,153.84,153.77,15.7497]
[1642090645893,2.36026292,153.83,153.77,15.7497]
[1642090646291,2.36026292,153.83,153.77,16.66491208]
[1642090646491,2.62026292,153.83,153.77,16.66491208]
[1642090646892,2.62026292,153.83,153.77,16.91491208]
[1642090647092,2.36026292,153.83,153.77,16.91491208]
[1642090647494,2.36026292,153.83,153.77,18.81455462]
[1642090647694,2.36026292,153.84,153.77,26.63455462]
[1642090648298,2.36026292,153.84,153.78,64.88]
[1642090648495,2.36026292,153.84,153.78,16.2567]
[1642090648894,2.36026292,153.86,153.78,16.2567]
[1642090649295,2.36026292,153.86,153.78,82.78046731]
[1642090649995,2.36026292,153.87,153.78,82.78046731]
[1642090650898,2.36026292,153.88,153.78,82.78046731]
[1642090651696,2.36026292,153.88,153.79,7.82]
[1642090651899,2.36026292,153.88,153.81,9.7451]
[1642090652102,2.36026292,153.89,153.81,18.0751]
[1642090652299,2.36026292,153.89,153.82,13.02393116]
[1642090652500,2.36026292,153.89,153.82,19.53393116]
[1642090653098,2.36026292,153.91,153.83,7.82]
[1642090653299,4.95926292,153.91,153.76,25.61216731]
[1642090653500,5.20926292,153.91,153.76,23.9684]
[1642090653899,11.46926292,153.91,153.76,25.61216731]
[1642090654100,11.46926292,153.91,153.77,18.00825267]
[1642090654499,9.7489,153.9,153.78,11.39316731]
[1642090654699,18.29513792,153.89,153.78,19.21316731]
[1642090654902,20.65540084,153.89,153.78,23.5694]
[1642090655100,20.90540084,153.89,153.78,23.5694]
[1642090655703,3.7166011,153.88,153.78,23.5694]
[1642090655902,3.7166011,153.88,153.78,23.8194]
[1642090656106,4.2266011,153.88,153.78,23.8194]
[1642090656604,3.9766011,153.88,153.78,23.8194]
[1642090656804,6.33686402,153.88,153.78,23.8194]
[1642090657504,2.36026292,153.87,153.78,23.8194]
[1642090657704,4.96026292,153.87,153.78,23.8194]
[1642090657911,5.47026292,153.87,153.78,23.8194]
[1642090658305,5.21026292,153.87,153.78,23.8194]
[1642090658505,2.36026292,153.87,153.78,88.6994]
[1642090658708,2.36026292,153.87,153.78,90.34316731]
[1642090658905,2.36026292,153.87,153.78,90.60316731]
[1642090659306,2.36026292,153.87,153.78,23.8294]
[1642090659506,2.61026292,153.87,153.78,23.8294]
[1642090659711,2.61026292,153.87,153.78,17.8294]
[1642090659907,2.61026292,153.87,153.78,82.7094]
[1642090660107,2.36026292,153.87,153.78,88.7094]
[1642090660309,2.36026292,153.87,153.79,11.58099269]
[1642090660507,2.36026292,153.87,153.81,9.7477]
[1642090660909,2.36026292,153.87,153.81,10.2577]
[1642090661112,6.07281783,153.88,153.81,10.0077]
[1642090661314,6.07281783,153.88,153.81,10.2577]
[1642090662012,6.32281783,153.88,153.81,10.2577]
[1642090662411,2.36026292,153.87,153.81,10.2577]
[1642090663242,2.36026292,153.86,153.81,10.2577]
[1642090664242,2.36026292,153.86,153.82,1.64376731]
[1642090664542,2.36026292,153.86,153.82,11.90096731]
[1642090664741,2.36026292,153.87,153.82,11.90096731]
[1642090665750,2.36026292,153.87,153.82,10.2572]
[1642090665953,2.36026292,153.87,153.82,11.90096731]
[1642090666353,2.36026292,153.88,153.82,11.90096731]
[1642090667055,2.36026292,153.88,153.83,1.09466462]
[1642090667356,2.36026292,153.88,153.85,9.746]
[1642090667555,6.292e-05,153.88,153.86,6.06439993]
[1642090667956,6.292e-05,153.88,153.86,6.57439993]
[1642090668157,4.62907862,153.91,153.86,8.21411366]
[1642090668358,4.62907862,153.91,153.87,9.7441]
[1642090668659,4.62907862,153.91,153.87,10.2541]
[1642090669257,3.71278803,153.94,153.87,10.2541]
[1642090669557,3.71278803,153.94,153.87,13.65525709]
[1642090669757,9.71278803,153.94,153.87,10.2541]
[1642090671457,3.71278803,153.93,153.87,10.2541]
[1642090671856,9.71278803,153.93,153.87,0.25]
[1642090672057,3.97278803,153.93,153.86,10.256]
[1642090672257,3.71278803,153.93,153.86,10.256]
[1642090673559,3.71278803,153.94,153.86,10.256]
[1642090673959,10.22278803,153.94,153.85,7.82]
[1642090674163,10.22278803,153.94,153.85,14.07]
[1642090674164,2.599,153.93,153.85,14.07]
[1642090674561,8.859,153.93,153.85,14.07]
[1642090674760,6.26,153.93,153.85,14.07]
[1642090674962,0.26,153.93,153.86,1.63567821]
[1642090675160,0.26,153.93,153.86,11.38137821]
[1642090675360,9.97278803,153.94,153.86,11.89137821]
[1642090675561,9.97278803,153.94,153.86,10.2557]
[1642090675760,3.71278803,153.92,153.86,11.89137821]
[1642090676763,3.71278803,153.93,153.86,11.89137821]
[1642090677762,3.71278803,153.93,153.86,17.89137821]
[1642090677962,3.71278803,153.93,153.86,11.89137821]
[1642090678462,3.71278803,153.93,153.86,10.2557]
[1642090679664,21.21077018,153.93,153.86,10.2557]
[1642090679864,21.21077018,153.93,153.86,10.0057]
[1642090680063,3.71278803,153.93,153.86,10.2557]
[1642090680364,3.71278803,153.92,153.86,10.2557]
[1642090680764,3.71278803,153.92,153.87,66.51635559]
[1642090680765,0.00278803,153.92,153.87,66.51635559]
[1642090680963,0.00278803,153.92,153.89,9.7406]
[1642090681166,0.32624463,154.0,153.92,56.0]
[1642090681367,0.32624463,154.0,153.93,7.82]
[1642090681570,0.32624463,154.0,153.93,14.33]
[1642090681791,0.32624463,154.0,153.93,15.96635559]
[1642090681967,0.32624463,154.0,153.96,9.7386]
[1642090682164,0.32624463,154.0,153.96,17.5586]
[1642090682464,0.32624463,154.0,153.96,28.53626019]
[1642090684468,0.32624463,154.0,153.96,25.70495559]
[1642090684872,4.463e-05,154.0,153.98,9.7359]
[1642090685067,4.463e-05,154.0,153.99,13.88439993]
[1642090685267,35.00004463,154.0,153.99,6.06439993]
[1642090685466,35.00004463,154.0,153.93,7.82]
[1642090685669,4.463e-05,154.0,153.93,7.82]
[1642090685867,4.463e-05,154.0,153.93,17.5612]
[1642090686468,4.463e-05,154.0,153.93,17.8112]
[1642090687468,7.60904463,154.0,153.93,8.07]
[1642090687868,7.86904463,154.0,153.93,8.07]
[1642090688069,13.86904463,154.0,153.93,8.07]
[1642090688268,29.71693058,154.0,153.93,8.07]
[1642090688468,9.7428,153.99,153.93,8.07]
[1642090688672,9.7428,153.99,153.93,8.33]
[1642090688869,4.463e-05,154.0,153.93,8.33]
[1642090689372,4.463e-05,154.0,153.93,20.32220774]
[1642090689574,4.463e-05,154.0,153.93,18.072]
[1642090689771,4.463e-05,154.0,153.93,24.072]
[1642090690579,4.463e-05,154.0,153.93,23.822]
[1642090691674,4.463e-05,154.0,153.93,23.562]
[1642090692975,4.463e-05,154.0,153.98,64.88]
[1642090693176,4.463e-05,154.0,153.99,170.76439993]
[1642090693376,2.597,154.15,154.0,92.0]
[1642090693580,2.597,154.15,154.02,64.88]
[1642090693777,2.595,154.16,154.03,7.82]
[1642090693977,2.595,154.16,154.05,9.7351]
[1642090694177,126.1898954,154.2,154.05,17.5551]
[1642090694178,2.595,154.19,154.05,17.5551]
[1642090694377,2.595,154.19,154.05,18.0651]
[1642090694579,2.595,154.19,154.05,24.0651]
[1642090694981,2.595,154.19,154.05,34.85841885]
[1642090695180,2.595,154.19,154.05,36.49477444]
[1642090695779,2.595,154.2,154.13,9.7303]
[1642090695980,2.595,154.21,154.13,9.9803]
[1642090696180,2.594,154.24,154.13,9.9803]
[1642090696378,13.52498443,154.27,154.13,10.2403]
[1642090696584,2.594,154.26,154.14,7.82]
[1642090696799,2.594,154.26,154.18,9.7267]
[1642090696999,2.594,154.26,154.18,10.2367]
[1642090697200,2.593,154.27,154.18,10.2367]
[1642090697403,2.593,154.27,154.18,9.9767]
[1642090697601,2.593,154.27,154.18,9.7267]
[1642090697803,2.593,154.27,154.14,7.82]
[1642090698003,16.73679,154.26,154.16,0.25]
[1642090698202,2.593,154.25,154.16,0.25]
[1642090698604,8.853,154.25,154.14,8.08]
[1642090698806,8.853,154.25,154.15,9.7287]
[1642090699002,8.593,154.25,154.15,17.8087]
[1642090700006,8.593,154.25,154.15,18.0587]
[1642090700204,6.0,154.25,154.15,18.0587]
[1642090700604,22.73679,154.26,154.15,18.0587]
[1642090700903,25.32979,154.26,154.15,17.8087]
[1642090701103,25.32979,154.26,154.15,7.82]
[1642090701104,22.98679,154.26,154.15,7.82]
[1642090701307,2.593,154.25,154.12,7.82]
[1642090701505,9.7309,154.22,154.12,7.82]
[1642090701905,2.843,154.25,154.12,9.46460303]
[1642090702104,2.594,154.28,154.12,30.24862188]
[1642090702510,2.594,154.28,154.12,36.24862188]
[1642090702705,9.7295,154.24,154.12,36.24862188]
[1642090702907,17.50209618,154.24,154.12,36.49862188]
[1642090703707,17.50209618,154.24,154.12,36.24862188]
[1642090703907,23.76209618,154.24,154.12,36.24862188]
[1642090704306,9.7307,154.22,154.12,15.46460303]
[1642090704506,14.38983244,154.21,154.12,15.46460303]
[1642090704906,14.64983244,154.21,154.12,15.46460303]
[1642090705110,14.64983244,154.21,154.12,9.46460303]
[1642090705308,24.63123244,154.21,154.08,20.78621885]
[1642090705510,67.474,154.2,154.08,20.78621885]
[1642090705708,81.946,154.2,154.07,9.7214]
[1642090705911,81.946,154.2,154.02,9.7814]
[1642090705912,79.0,154.19,154.02,9.7814]
[1642090706110,17.38784906,154.17,153.95,8.53]
[1642090706308,9.739,154.1,153.96,40.2809]
[1642090706510,14.3847371,154.09,153.98,9.7395]
[1642090706711,14.3847371,154.09,153.96,9.46460303]
[1642090706909,14.6447371,154.09,153.96,9.46460303]
[1642090708312,0.26,154.09,153.97,9.7401]
[1642090708513,6.0,154.12,153.98,7.82]
[1642090708713,6.0,154.12,153.98,9.46872308]
[1642090709313,15.18398254,154.11,153.98,9.46872308]
[1642090709512,15.18398254,154.11,153.98,9.72872308]
[1642090709714,15.18398254,154.11,153.98,9.71872308]
[1642090709913,15.44398254,154.11,154.0,9.7377]
[1642090710114,15.44398254,154.11,154.0,9.9877]
[1642090710115,2.856,154.11,154.0,9.9877]
[1642090710315,2.596,154.13,154.0,19.45642308]
[1642090710512,8.596,154.13,154.0,19.45642308]
[1642090710714,2.596,154.13,154.0,19.45642308]
[1642090710916,2.596,154.15,154.0,19.45642308]
[1642090711113,19.00150505,154.14,154.0,19.71642308]
[1642090711315,2.596,154.15,154.01,64.88]
[1642090711513,2.596,154.16,154.05,9.7346]
[1642090711914,2.596,154.16,154.05,10.2446]
[1642090712114,2.596,154.16,154.06,9.46872308]
[1642090712314,2.595,154.18,154.06,9.46872308]
[1642090712514,2.595,154.18,154.06,9.97872308]
[1642090712919,2.595,154.22,154.11,0.31066223]
[1642090713115,2.594,154.24,154.14,32.4225]
[1642090713315,2.594,154.29,154.11,7.82]
[1642090713514,2.594,154.29,154.12,77.2227]
[1642090713715,18.52538542,154.28,154.12,77.2227]
[1642090714015,2.594,154.27,154.14,9.7289]
[1642090714216,2.594,154.27,154.14,17.5489]
[1642090714415,8.594,154.27,154.14,18.0589]
[1642090714815,18.3222,154.27,154.14,18.0589]
[1642090715422,8.594,154.27,154.14,18.0589]
[1642090716020,18.3223,154.27,154.14,18.0589]
[1642090716420,8.854,154.27,154.14,18.0589]
[1642090716820,64.88,154.26,154.14,0.25]
[1642090717018,21.71899683,154.25,154.12,87.2028]
[1642090717319,21.71899683,154.25,154.12,9.7301]
[1642090717518,28.22899683,154.25,154.09,7.82]
[1642090717718,7.82,154.24,154.08,78.3545]
[1642090717921,7.82,154.24,154.08,84.3545]
[1642090717922,13.76632524,154.22,154.08,84.3545]
[1642090718119,10.414,154.21,154.09,9.7323]
[1642090718520,20.6562,154.21,154.09,15.7323]
[1642090718721,20.4062,154.21,154.09,15.7323]
[1642090718920,2.594,154.21,154.09,15.9823]
[1642090719121,2.594,154.21,154.09,15.7323]
[1642090719322,75.294,154.21,154.09,15.7323]
[1642090719521,67.724,154.21,154.09,15.7323]
[1642090720121,85.2761,154.21,154.09,15.7323]
[1642090720524,85.5361,154.21,154.09,15.9823]
[1642090720822,85.5361,154.21,154.05,9.5929]
[1642090721023,98.3331,154.21,154.0,17.3157]
[1642090721224,75.3454,154.2,154.0,17.3157]
[1642090721427,64.88,154.14,154.0,17.3157]
[1642090721624,67.476,154.14,154.0,17.3157]
[1642090721822,67.986,154.14,154.03,9.7357]
[1642090722025,3.106,154.14,154.03,9.9857]
[1642090722425,2.856,154.14,154.03,10.2457]
[1642090722625,1.83436732,154.17,154.03,11.89569521]
[1642090722834,1.83436732,154.17,154.09,9.7324]
[1642090723076,1.83436732,154.18,154.09,9.9824]
[1642090723228,1.83436732,154.18,154.09,10.2424]
[1642090723629,17.3282219,154.18,154.09,9.9824]
[1642090724027,15.49385458,154.18,154.09,9.9824]
[1642090724427,15.75385458,154.18,154.09,9.9824]
[1642090724631,0.26,154.18,154.09,9.9824]
[1642090725028,1.83436732,154.18,154.09,11.89239521]
[1642090725229,2.09436732,154.18,154.09,17.8024]
[1642090725429,2.09436732,154.18,154.09,24.0624]
[1642090726030,0.26,154.18,154.09,24.0624]
[1642090726430,2.09436732,154.2,154.09,24.0624]
[1642090726632,1.83436732,154.2,154.09,24.0624]
[1642090727432,1.83436732,154.2,154.09,23.8024]
[1642090727834,1.83436732,154.2,154.09,17.8024]
[1642090728035,67.474,154.21,154.09,17.8024]
[1642090728237,0.26,154.2,154.09,17.8024]
[1642090728435,67.474,154.21,154.09,17.8024]
[1642090729035,67.724,154.21,154.09,17.5524]
[1642090729235,69.55836732,154.21,154.09,17.5524]
[1642090729639,69.55836732,154.21,154.09,15.7324]
[1642090729837,69.56836732,154.21,154.09,15.7324]
[1642090730035,69.56836732,154.21,154.1,7.82]
[1642090730238,66.97436732,154.21,154.1,7.82]
[1642090730438,66.71436732,154.21,154.14,9.7289]
[1642090730841,66.71436732,154.21,154.14,6.4166141]
[1642090731240,64.88,154.21,154.14,6.4166141]
[1642090731846,67.734,154.21,154.14,6.4166141]
[1642090733043,67.984,154.21,154.14,6.4166141]
[1642090733244,2.594,154.21,154.14,6.6666141]
[1642090733444,2.594,154.24,154.14,6.6666141]
[1642090733841,8.844,154.24,154.14,6.6666141]
[1642090734242,91.7642785,154.24,154.14,6.6666141]
[1642090734443,88.9202785,154.24,154.14,6.6666141]
[1642090735243,9.7297,154.23,154.14,6.6666141]
[1642090735443,12.3237,154.23,154.14,6.6666141]
[1642090735643,18.3237,154.23,154.14,6.6666141]
[1642090735945,18.8337,154.23,154.14,6.6666141]
[1642090736344,9.104,154.23,154.14,6.4166141]
[1642090736845,64.88,154.22,154.14,6.4166141]
[1642090737044,2.594,154.21,154.1,7.82]
[1642090737244,20.10158453,154.21,154.1,7.82]
[1642090737445,24.01758453,154.21,154.1,13.82]
[1642090738073,88.89758453,154.21,154.1,14.07]
[1642090738275,71.39,154.21,154.13,9.73]
[1642090738475,0.26,154.21,154.13,9.98]
[1642090738872,78.2744,154.25,154.13,9.98]
[1642090739173,84.2744,154.25,154.13,18.06]
[1642090739574,84.2744,154.25,154.13,24.06]
[1642090739972,84.5344,154.25,154.13,24.06]
[1642090740372,84.5344,154.25,154.13,23.8]
[1642090740673,84.7844,154.25,154.13,17.8]
[1642090740872,64.88,154.24,154.13,17.8]
[1642090741076,3.3161073,154.16,154.13,17.8]
[1642090741474,3.3161073,154.16,154.15,9.7276]
[1642090741873,3.3161073,154.16,154.15,10.2376]
[1642090742973,118.6299,154.27,154.15,10.2376]
[1642090743175,116.0359,154.27,154.15,18.0576]
[1642090743374,116.0359,154.27,154.15,24.0576]
[1642090743575,116.0359,154.27,154.15,18.0576]
[1642090743777,116.0359,154.27,154.15,23.7976]
[1642090744175,122.0359,154.27,154.15,23.7976]
[1642090744374,122.0359,154.27,154.15,17.7976]
[1642090744574,122.0359,154.27,154.15,23.7976]
[1642090744774,122.2959,154.27,154.15,23.7976]
[1642090745175,122.2959,154.27,154.15,24.0576]
[1642090745375,1.85416913,154.24,154.15,24.0576]
[1642090745574,2.11416913,154.24,154.15,24.0576]
[1642090745775,2.11416913,154.24,154.15,25.70759521]
[1642090745978,1.85416913,154.24,154.15,25.70759521]
[1642090746584,64.88,154.29,154.15,24.0576]
[1642090746784,81.6054,154.3,154.15,23.7976]
[1642090746989,81.6054,154.3,154.16,1.64999521]
[1642090747187,2.593,154.32,154.19,9.7219]
[1642090747386,2.593,154.33,154.2,7.82]
[1642090747587,191.804,154.37,154.2,14.07]
[1642090747588,2.592,154.36,154.2,14.07]
[1642090747786,16.70281639,154.35,154.21,78.6235]
[1642090747986,16.70281639,154.35,154.21,85.1335]
[1642090748187,16.70281639,154.35,154.21,94.6048]
[1642090748393,16.70281639,154.35,154.21,15.7213]
[1642090748588,64.88,154.34,154.21,9.7213]
[1642090748789,2.592,154.33,154.21,9.7213]
[1642090748991,8.842,154.33,154.21,9.7213]
[1642090749191,8.842,154.33,154.2,7.82]
[1642090749192,16.295,154.33,154.2,7.82]
[1642090749389,7.82,154.32,154.19,9.726]
[1642090749591,2.593,154.31,154.19,9.726]
[1642090749790,10.413,154.31,154.15,110.8285]
[1642090749992,16.6787765,154.29,154.12,9.7784]
[1642090750194,9.7301,154.22,154.12,9.7784]
[1642090750394,2.594,154.21,154.12,19.5088]
[1642090750589,9.104,154.21,154.12,9.7304]
[1642090750791,9.104,154.21,154.08,88.3608]
[1642090750991,9.104,154.21,154.08,55.9263]
[1642090751191,9.104,154.21,154.08,56.1763]
[1642090751393,16.924,154.21,154.08,55.9263]
[1642090751594,7.82,154.2,154.06,82.1169]
[1642090751792,2.595,154.19,154.06,72.5679]
[1642090751991,73.985,154.19,154.02,10.32343693]
[1642090752192,7.82,154.18,154.02,19.93243693]
[1642090752393,14.12898592,154.16,154.02,15.609]
[1642090752598,2.595,154.15,154.02,15.609]
[1642090752892,64.88,154.14,154.05,9.7352]
[1642090753092,65.14,154.14,154.05,9.7352]
[1642090753492,0.26,154.14,154.05,9.9852]
[1642090753694,2.595,154.15,154.05,9.9852]
[1642090753896,2.595,154.17,154.05,9.9852]
[1642090754099,7.82,154.18,154.05,9.9852]
[1642090754497,13.82,154.18,154.05,15.9852]
[1642090754897,6.0,154.18,154.05,15.9852]
[1642090755095,2.595,154.19,154.05,34.12863693]
[1642090755295,0.26,154.18,154.05,35.77863214]
[1642090755496,6.0,154.2,154.05,35.77863214]
[1642090755695,6.0,154.2,154.05,36.03863214]
[1642090755895,2.595,154.2,154.05,35.77863214]
[1642090756095,8.595,154.2,154.05,34.12863693]
[1642090756498,64.88,154.19,154.05,35.77863214]
[1642090756897,70.88,154.19,154.05,35.77863214]
[1642090757097,70.88,154.19,154.05,35.52863214]
[1642090757098,71.14,154.19,154.05,35.52863214]
[1642090757301,2.595,154.18,154.05,34.13863693]
[1642090757498,2.855,154.18,154.05,34.13863693]
[1642090758102,2.855,154.18,154.05,23.8152]
[1642090758500,3.105,154.18,154.05,24.0652]
[1642090759002,18.8371,154.18,154.05,17.5552]
[1642090759206,7.82,154.17,154.05,9.7352]
[1642090759403,67.475,154.16,154.05,9.7352]
[1642090759605,14.97814665,154.15,154.05,9.7352]
[1642090760004,21.23814665,154.15,154.05,9.7352]
[1642090760208,64.88,154.14,154.05,9.7352]
[1642090760409,90.0,154.13,154.05,0.0001]
[1642090760609,72.7,154.12,154.0,1.63844534]
[1642090761011,9.7364,154.11,154.0,1.63844534]
[1642090761411,23.1374,154.11,154.0,1.63844534]
[1642090761713,22.60482201,154.11,154.01,9.7378]
[1642090762510,30.42482201,154.11,154.01,9.7378]
[1642090762709,22.34482201,154.11,154.01,9.7378]
[1642090763209,16.34482201,154.11,154.01,9.7378]
[1642090763408,9.20382201,154.11,154.01,9.7378]
[1642090764011,9.20382201,154.11,154.01,9.9878]
[1642090764342,15.20382201,154.11,154.01,9.7378]
[1642090764537,23.28382201,154.11,154.01,9.7378]
[1642090765537,23.28382201,154.11,154.01,9.9878]
[1642090766940,13.82,154.11,154.01,9.9878]
[1642090767139,5.9168926,154.12,154.02,1.64999521]
[1642090767438,3.3208926,154.12,154.06,9.7343]
[1642090767848,9.3208926,154.12,154.06,9.9843]
[1642090768039,74.2008926,154.12,154.06,9.9843]
[1642090768244,74.2008926,154.12,154.06,0.25]
[1642090768639,74.2008926,154.12,154.02,32.4477]
[1642090768839,74.4608926,154.12,154.04,9.7359]
[1642090769443,84.4465926,154.12,153.99,79.4324]
[1642090769641,2.596,154.11,153.99,79.4324]
[1642090770041,8.856,154.11,153.99,79.4324]
[1642090770241,64.88,154.1,153.99,79.4324]
[1642090770443,18.54729326,154.09,153.99,79.4324]
[1642090770644,18.54729326,154.09,154.02,9.7371]
[1642090770844,18.80729326,154.09,154.02,6.4162074]
[1642090771044,18.80729326,154.09,154.02,6.6662074]
[1642090771445,18.80729326,154.09,154.02,0.25]
[1642090771644,64.88,154.08,154.02,0.25]
[1642090771846,64.88,154.06,153.97,1.12077371]
[1642090772049,71.14,154.06,153.94,7.79524]
[1642090772246,10.417,154.05,153.93,11.23244534]
[1642090772446,10.677,154.05,153.93,11.23244534]
[1642090772645,16.927,154.05,153.93,11.23244534]
[1642090773146,9.7424,154.02,153.94,9.7422]
[1642090773548,21.8874,154.02,153.93,11.23244534]
[1642090773947,29.7074,154.02,153.91,93.4]
[1642090774147,64.88,154.01,153.91,93.4]
[1642090774348,9.7438,154.0,153.92,9.7428]
[1642090774550,16.0038,154.0,153.92,9.7428]
[1642090774847,10.0038,154.0,153.92,9.7428]
[1642090775046,16.0038,154.0,153.91,93.4]
[1642090776088,9.7438,154.0,153.91,103.144]
[1642090776281,2.598,154.03,153.91,115.11743214]
[1642090776580,6.0,154.03,153.92,64.88]
[1642090776780,6.0,154.04,153.91,111.62343214]
[1642090776982,13.82,154.06,153.93,11.97343214]
[1642090777185,14.60680822,154.05,153.93,11.97343214]
[1642090777384,14.60680822,154.05,153.97,9.739]
[1642090777584,20.86680822,154.05,153.97,9.989]
[1642090777983,20.86680822,154.05,153.93,1.64999521]
[1642090778185,67.477,154.04,153.9,10.32343693]
[1642090778385,67.477,154.04,153.9,16.32343693]
[1642090778585,64.88,154.02,153.93,9.7421]
[1642090778785,67.477,154.02,153.93,9.7421]
[1642090778984,73.737,154.02,153.93,9.7421]
[1642090779385,71.14,154.02,153.93,9.7421]
[1642090779585,2.597,154.01,153.93,9.7421]
[1642090779792,71.14,154.02,153.93,9.7421]
[1642090780186,80.8825,154.02,153.92,9.7433]
[1642090780485,2.597,154.01,153.92,9.7433]
[1642090780887,64.88,154.0,153.92,9.7433]
[1642090781086,71.14,154.0,153.92,9.7433]
[1642090781688,65.14,154.0,153.92,9.7433]
[1642090781887,17.68028333,153.99,153.92,9.9933]
[1642090782088,3.3277197,153.95,153.92,9.9933]
[1642090782291,3.3277197,153.95,153.92,0.25]
[1642090782492,3.5877197,153.95,153.91,0.25]
[1642090782889,3.5877197,153.95,153.88,15.8302]
[1642090783290,3.5877197,153.95,153.9,9.744]
[1642090783490,3.3277197,153.95,153.9,9.994]
[1642090785992,3.3277197,153.95,153.9,20.31743693]
[1642090786391,3.3277197,153.95,153.9,20.57743693]
[1642090786992,3.3277197,153.95,153.9,26.57743693]
[1642090787392,0.0077197,153.95,153.9,26.57743693]
[1642090787595,2.598,154.07,153.93,9.7383]
[1642090787796,2.598,154.07,153.93,17.5583]
[1642090787993,2.598,154.07,153.94,11.97343214]
[1642090788192,1.84917099,154.08,153.94,11.97343214]
[1642090788392,20.25307224,154.08,153.95,1.64999521]
[1642090788691,18.40390125,154.08,153.95,7.89999521]
[1642090788892,18.40390125,154.08,153.95,1.89999521]
[1642090789293,18.91390125,154.08,153.95,1.89999521]
[1642090789494,2.597,154.07,153.95,1.89999521]
[1642090789793,2.597,154.07,153.97,9.7402]
[1642090789995,67.737,154.07,153.97,9.9902]
[1642090791096,73.737,154.07,153.97,9.9902]
[1642090791495,67.737,154.07,153.97,9.9902]